fUSD/lending_fUSD_20250206
["ID","MTS","AMOUNT","RATE_DAILY","PERIOD"]
[351949688,1738859439286,-2594.39,0.000165,2]
[351949690,1738859439296,-356.38,0.00016658,30]
[351949692,1738859439306,-150.0,0.0001666,2]
[351949694,1738859439320,-150.0,0.00016724,2]
[351949696,1738859439331,-150.0,0.00016749,2]
[351949698,1738859439341,-1221.123,0.00016812,2]
[351949700,1738859439351,-195.989,0.00016812,2]
[351949702,1738859439361,-165.01,0.00016813,2]
[351949704,1738859439370,-150.0,0.00017022,2]
[351949706,1738859439378,-1059.26,0.00017095,2]
[351949708,1738859439388,-212.87248574,0.00017123,2]
[351949710,1738859439397,-150.0,0.00017239,2]
[351949712,1738859439406,-1062.41592651,0.00017297,2]
[351949714,1738859439415,-45441.89019514,0.00017352,2]
[351949715,1738859439424,-1000.0,0.00017431,2]
[351949717,1738859439433,-150.0,0.00017471,2]
[351949719,1738859439442,-150.0,0.00017502,2]
[351949721,1738859439452,-642.0,0.00017507,2]
[351949723,1738859439461,-150.0,0.00017944,2]
[351949725,1738859439471,-150.0,0.00017997,2]
[351949727,1738859439480,-300.0,0.00017999,2]
[351949729,1738859439493,-668.21219216,0.00017999,2]
[351949731,1738859439503,-451848.45622138,0.00018,5]
[351949733,1738859439512,-23676.6064004,0.00018,2]
[351949735,1738859439521,-899.99999909,0.00018,19]
[351949737,1738859439531,-150.0,0.0001802,2]
[351949739,1738859439540,-150.0,0.00018037,2]
[351949741,1738859439550,-234.49,0.00018082,2]
[351949743,1738859439559,-150.0,0.00018106,2]
[351949745,1738859439573,-150.0,0.00018157,2]
[351949747,1738859439583,-49431.99830272,0.00018171,2]
[351949749,1738859439592,-729.11026486,0.00018264,2]
[351949751,1738859439601,-1439.8303085,0.00018271,2]
[351949753,1738859439611,-638.0,0.00018271,2]
[351949755,1738859439621,-568.0,0.00018271,2]
[351949757,1738859439631,-1826.0,0.00018271,2]
[351949758,1738859439641,-2953.0,0.00018271,2]
[351949760,1738859439650,-907.0,0.00018271,2]
[351949762,1738859439660,-1264.0,0.00018271,2]
[351949764,1738859439670,-783.0,0.00018271,2]
[351949766,1738859439679,-4023.0,0.00018271,2]
[351949768,1738859439689,-539.0,0.00018271,2]
[351949769,1738859439699,-248.752,0.00018271,2]
[351949771,1738859439708,-639.0,0.00018271,2]
[351949773,1738859439718,-3911.0,0.00018271,2]
[351949775,1738859439728,-2023.0,0.00018271,2]
[351949777,1738859439738,-45441.89019514,0.00018284,2]
[351949779,1738859439748,-1000.0,0.000183,2]
[351949781,1738859439760,-2594.39,0.000183,2]
[351949783,1738859439770,-500.0,0.00018315,7]
[351949785,1738859439780,-500.0,0.00018315,7]
[351949787,1738859439791,-500.0,0.00018315,7]
[351949789,1738859439802,-500.0,0.00018315,7]
[351949791,1738859439812,-500.0,0.00018315,7]
[351949793,1738859439825,-500.0,0.00018315,7]
[351949795,1738859439835,-500.0,0.00018315,7]
[351949797,1738859439844,-500.0,0.00018315,7]
[351949799,1738859439855,-500.0,0.00018315,7]
[351949801,1738859439865,-500.0,0.00018315,7]
[351949803,1738859439877,-500.0,0.00018315,7]
[351949805,1738859439887,-500.0,0.00018315,7]
[351949807,1738859439897,-500.0,0.00018315,7]
[351949809,1738859439907,-500.0,0.00018315,7]
[351949811,1738859439917,-391.58,0.00018315,7]
[351949813,1738859439927,-500.0,0.00018315,7]
[351949815,1738859439937,-500.0,0.00018315,7]
[351949818,1738859439947,-500.0,0.00018315,7]
[351949821,1738859439957,-500.0,0.00018315,7]
[351949822,1738859439967,-500.0,0.00018315,7]
[351949823,1738859439977,-500.0,0.00018315,7]
[351949824,1738859439987,-500.0,0.00018315,7]
[351949826,1738859439997,-500.0,0.00018315,7]
[351949827,1738859440007,-500.0,0.00018315,7]
[351949828,1738859440017,-500.0,0.00018315,7]
[351949829,1738859440027,-500.0,0.00018315,7]
[351949830,1738859440037,-500.0,0.00018315,7]
[351949831,1738859440047,-500.0,0.00018315,7]
[351949832,1738859440057,-500.0,0.00018315,7]
[351949834,1738859440068,-500.0,0.00018315,7]
[351949836,1738859440078,-500.0,0.00018315,7]
[351949838,1738859440088,-500.0,0.00018315,7]
[351949839,1738859440098,-500.0,0.00018315,7]
[351949840,1738859440107,-442.04,0.00018315,7]
[351949841,1738859440117,-150.0,0.00018327,2]
[351949842,1738859440127,-49431.99830263,0.00018363,2]
[351949843,1738859440137,-692.05468298,0.00018384,5]
[351949844,1738859440147,-157.11,0.000184,2]
[351949845,1738859440157,-150.0,0.00018423,2]
[351949846,1738859440167,-150.0,0.00018476,2]
[351949847,1738859440178,-692.05468298,0.00018493,5]
[351949848,1738859440187,-49431.99830263,0.00018555,2]
[351949849,1738859440198,-150.0,0.00018572,2]
[351949851,1738859440208,-692.05468298,0.00018575,5]
[351949853,1738859440218,-417.90263299,0.00018618,2]
[351949855,1738859440228,-150.0,0.0001863,2]
[351949857,1738859440241,-150.0,0.00018631,2]
[351949860,1738859440251,-692.05468298,0.00018658,5]
[351949862,1738859440260,-150.0,0.00018668,2]
[351949863,1738859440271,-150.0,0.00018676,2]
[351949865,1738859440280,-234.33,0.00018678,2]
[351949867,1738859440290,-150.0,0.00018725,2]
[351949869,1738859440300,-300.0,0.00018731,2]
[351949871,1738859440309,-692.05468298,0.0001874,5]
[351949873,1738859440324,-150.0,0.00018742,2]
[351949875,1738859440335,-49431.99830263,0.00018747,2]
[351949877,1738859440345,-234.49,0.00018751,2]
[351949879,1738859440354,-150.0,0.00018777,2]
[351949881,1738859440364,-295.03731476,0.00018795,5]
[351949883,1738859440374,-1212.0,0.000188,2]
[351949885,1738859440384,-150.0,0.00018808,2]
[351949887,1738859440394,-150.0,0.00018829,2]
[351949889,1738859440404,-1000.0,0.00018848,2]
[351949891,1738859440414,-692.05468298,0.00018849,5]
[351949893,1738859440423,-295.03731476,0.00018877,5]
[351949895,1738859440433,-150.0,0.00018887,2]
[351949897,1738859440443,-1600.0,0.000189,6]
[351949899,1738859440452,-3400.0,0.000189,6]
[351949901,1738859440463,-150.0,0.00018921,2]
[351949903,1738859440473,-620.7827432,0.00018928,2]
[351949905,1738859440482,-692.05468298,0.00018932,5]
[351949907,1738859440494,-49431.99830263,0.00018939,2]
[351949909,1738859440510,-150.0,0.00018953,2]
[351949911,1738859440519,-150.0,0.00018958,2]
[351949913,1738859440529,-295.03731476,0.00018986,5]
[351949915,1738859440539,-394.66,0.00018986,2]
[351949917,1738859440550,-692.05468298,0.00019014,5]
[351949919,1738859440560,-150.0,0.00019022,2]
[351949920,1738859440572,-150.0,0.00019066,2]
[351949922,1738859440581,-295.03731476,0.00019068,5]
[351949925,1738859440591,-1000.0,0.0001908,2]
[351949927,1738859440601,-150.0,0.0001909,2]
[351949928,1738859440611,-692.05468298,0.00019096,5]
[351949930,1738859440620,-150.0,0.00019131,2]
[351949932,1738859440630,-49431.99830263,0.00019132,2]
[351949934,1738859440639,-150.0,0.00019132,2]
[351949936,1738859440649,-295.03731476,0.00019151,5]
[351949938,1738859440658,-500.0,0.00019153,2]
[351949940,1738859440669,-2000.0,0.00019153,2]
[351949942,1738859440679,-500.0,0.00019153,2]
[351949944,1738859440689,-500.0,0.00019153,2]
[351949946,1738859440698,-200.0,0.00019153,2]
[351949948,1738859440708,-5688.998,0.0001916,7]
[351949951,1738859440720,-6378.69,0.0001916,15]
[351949953,1738859440730,-150.0,0.00019165,2]
[351949956,1738859440739,-150.0,0.00019167,2]
[351949958,1738859440750,-5157.61785941,0.00019168,7]
[351949961,1738859440762,-1506.0,0.00019171,2]
[351949962,1738859440774,-500.0,0.00019173,2]
[351949964,1738859440784,-676.22000016,0.00019177,2]
[351949966,1738859440794,-153.282885,0.00019178,2]
[351949968,1738859440804,-152.409931,0.00019178,2]
[351949971,1738859440814,-500.0,0.00019178,2]
[351949972,1738859440826,-508.9,0.00019178,2]
[351949974,1738859440836,-500.0,0.00019178,2]
[351949977,1738859440847,-500.0,0.00019178,2]
[351949979,1738859440857,-500.0,0.00019178,2]
[351949980,1738859440867,-500.0,0.00019178,2]
[351949982,1738859440877,-500.0,0.00019178,2]
[351949984,1738859440887,-500.0,0.00019178,2]
[351949987,1738859440898,-500.0,0.00019178,2]
[351949989,1738859440908,-513.58,0.00019178,2]
[351949991,1738859440918,-544.1,0.00019178,2]
[351949993,1738859440928,-500.0,0.00019178,2]
[351949995,1738859440939,-500.0,0.00019178,2]
[351949997,1738859440950,-602.48,0.00019178,2]
[351949999,1738859440960,-882.37,0.00019178,2]
[351950001,1738859440971,-500.0,0.00019178,2]
[351950003,1738859440981,-500.0,0.00019178,2]
[351950005,1738859440991,-500.0,0.00019178,2]
[351950007,1738859441002,-500.0,0.00019178,2]
[351950009,1738859441013,-504.03533627,0.00019178,2]
[351950011,1738859441023,-500.0,0.00019178,2]
[351950013,1738859441034,-500.0,0.00019178,2]
[351950015,1738859441045,-500.0,0.00019178,2]
[351950017,1738859441055,-500.0,0.00019178,2]
[351950019,1738859441066,-163.41755503,0.00019178,7]
[351950021,1738859441078,-500.0,0.00019178,2]
[351950023,1738859441089,-500.0,0.00019178,2]
[351950025,1738859441100,-500.0,0.00019178,2]
[351950027,1738859441111,-500.0,0.00019178,2]
[351950029,1738859441120,-500.0,0.00019178,2]
[351950031,1738859441130,-500.0,0.00019178,2]
[351950033,1738859441144,-500.0,0.00019178,2]
[351950035,1738859441155,-500.0,0.00019178,2]
[351950037,1738859441166,-500.0,0.00019178,2]
[351950039,1738859441177,-500.0,0.00019178,2]
[351950041,1738859441188,-500.0,0.00019178,2]
[351950043,1738859441199,-599.54,0.00019178,2]
[351950045,1738859441211,-500.0,0.00019178,2]
[351950047,1738859441221,-500.0,0.00019178,2]
[351950049,1738859441232,-515.24296962,0.00019178,2]
[351950051,1738859441243,-500.0,0.00019178,2]
[351950053,1738859441254,-500.0,0.00019178,2]
[351950055,1738859441265,-500.0,0.00019178,2]
[351950057,1738859441276,-500.0,0.00019178,2]
[351950059,1738859441287,-537.36,0.00019178,2]
[351950061,1738859441299,-500.0,0.00019178,2]
[351950063,1738859441310,-500.0,0.00019178,2]
[351950065,1738859441324,-500.0,0.00019178,2]
[351950067,1738859441334,-500.0,0.00019178,2]
[351950069,1738859441345,-596.33542048,0.00019178,2]
[351950071,1738859441355,-500.0,0.00019178,2]
[351950073,1738859441365,-500.0,0.00019178,2]
[351950075,1738859441376,-500.0,0.00019178,2]
[351950077,1738859441386,-500.0,0.00019178,2]
[351950079,1738859441397,-500.0,0.00019178,2]
[351950081,1738859441407,-500.0,0.00019178,2]
[351950083,1738859441418,-562.99,0.00019178,2]
[351950085,1738859441428,-500.0,0.00019178,2]
[351950087,1738859441438,-300.0,0.00019178,2]
[351950089,1738859441449,-500.0,0.00019178,2]
[351950091,1738859441459,-500.0,0.00019178,2]
[351950093,1738859441468,-500.0,0.00019178,2]
[351950095,1738859441479,-500.0,0.00019178,2]
[351950097,1738859441489,-500.0,0.00019178,2]
[351950099,1738859441502,-506.14080545,0.00019178,2]
[351950101,1738859441512,-1322.08,0.00019178,2]
[351950103,1738859441522,-500.0,0.00019178,2]
[351950105,1738859441532,-500.0,0.00019178,2]
[351950107,1738859441542,-500.0,0.00019178,2]
[351950109,1738859441552,-500.0,0.00019178,2]
[351950111,1738859441563,-500.0,0.00019178,2]
[351950113,1738859441576,-500.0,0.00019178,2]
[351950115,1738859441587,-338.93211426,0.00019178,2]
[351950117,1738859441597,-500.0,0.00019178,2]
[351950119,1738859441607,-500.0,0.00019178,2]
[351950121,1738859441617,-500.0,0.00019178,2]
[351950123,1738859441627,-500.0,0.00019178,2]
[351950126,1738859441636,-500.0,0.00019178,2]
[351950128,1738859441646,-500.0,0.00019178,2]
[351950130,1738859441657,-500.0,0.00019178,2]
[351950132,1738859441667,-500.0,0.00019178,2]
[351950134,1738859441677,-500.0,0.00019178,2]
[351950136,1738859441694,-500.0,0.00019178,2]
[351950138,1738859441704,-500.0,0.00019178,2]
[351950140,1738859441715,-500.0,0.00019178,2]
[351950142,1738859441726,-500.0,0.00019178,2]
[351950144,1738859441737,-627.69,0.00019178,2]
[351950146,1738859441747,-500.0,0.00019178,2]
[351950148,1738859441758,-500.0,0.00019178,2]
[351950150,1738859441769,-500.0,0.00019178,2]
[351950152,1738859441779,-500.0,0.00019178,2]
[351950154,1738859441789,-500.0,0.00019178,2]
[351950156,1738859441799,-500.0,0.00019178,2]
[351950158,1738859441809,-939.79,0.00019178,2]
[351950161,1738859441819,-500.0,0.00019178,2]
[351950163,1738859441829,-500.0,0.00019178,2]
[351950165,1738859441839,-1087.67,0.00019178,2]
[351950167,1738859441849,-215.68991301,0.00019178,2]
[351950169,1738859441859,-500.0,0.00019178,2]
[351950171,1738859441870,-500.0,0.00019178,2]
[351950173,1738859441880,-500.0,0.00019178,2]
[351950175,1738859441890,-502.26392391,0.00019178,2]
[351950177,1738859441900,-500.0,0.00019178,2]
[351950179,1738859441910,-500.0,0.00019178,2]
[351950181,1738859441920,-500.0,0.00019178,2]
[351950183,1738859441930,-500.0,0.00019178,2]
[351950185,1738859441940,-598.26,0.00019178,2]
[351950187,1738859441950,-500.0,0.00019178,2]
[351950189,1738859441960,-500.0,0.00019178,2]
[351950191,1738859441970,-500.0,0.00019178,2]
[351950193,1738859441979,-500.0,0.00019178,2]
[351950195,1738859441990,-500.0,0.00019178,2]
[351950197,1738859442000,-500.0,0.00019178,2]
[351950199,1738859442010,-500.0,0.00019178,2]
[351950201,1738859442020,-500.0,0.00019178,2]
[351950203,1738859442030,-500.0,0.00019178,2]
[351950205,1738859442040,-500.0,0.00019178,2]
[351950207,1738859442050,-743.16,0.00019178,2]
[351950210,1738859442060,-1053.34,0.00019178,2]
[351950212,1738859442070,-500.0,0.00019178,2]
[351950214,1738859442081,-500.0,0.00019178,2]
[351950216,1738859442092,-500.0,0.00019178,2]
[351950218,1738859442103,-500.0,0.00019178,2]
[351950220,1738859442114,-595.61918706,0.00019178,2]
[351950222,1738859442124,-500.0,0.00019178,2]
[351950224,1738859442135,-500.0,0.00019178,2]
[351950226,1738859442146,-500.0,0.00019178,2]
[351950228,1738859442156,-500.0,0.00019178,2]
[351950230,1738859442166,-500.0,0.00019178,2]
[351950232,1738859442178,-644.09,0.00019178,2]
[351950234,1738859442196,-500.0,0.00019178,2]
[351950236,1738859442206,-500.0,0.00019178,2]
[351950238,1738859442216,-953.16,0.00019178,2]
[351950240,1738859442226,-500.0,0.00019178,2]
[351950242,1738859442236,-500.0,0.00019178,2]
[351950244,1738859442246,-500.0,0.00019178,2]
[351950246,1738859442256,-1101.73,0.00019178,2]
[351950248,1738859442266,-500.0,0.00019178,2]
[351950250,1738859442275,-670.07,0.00019178,2]
[351950252,1738859442284,-500.0,0.00019178,2]
[351950254,1738859442294,-500.0,0.00019178,2]
[351950257,1738859442304,-500.0,0.00019178,2]
[351950259,1738859442314,-500.0,0.00019178,2]
[351950261,1738859442325,-500.0,0.00019178,2]
[351950263,1738859442335,-500.0,0.00019178,2]
[351950265,1738859442345,-517.59,0.00019178,2]
[351950267,1738859442355,-500.0,0.00019178,2]
[351950269,1738859442365,-500.0,0.00019178,2]
[351950271,1738859442375,-500.0,0.00019178,2]
[351950273,1738859442384,-500.0,0.00019178,2]
[351950275,1738859442394,-500.0,0.00019178,2]
[351950277,1738859442404,-666.67,0.00019178,2]
[351950279,1738859442415,-500.0,0.00019178,2]
[351950281,1738859442425,-500.0,0.00019178,2]
[351950283,1738859442436,-500.0,0.00019178,2]
[351950285,1738859442446,-586.10374856,0.00019178,2]
[351950287,1738859442457,-500.0,0.00019178,2]
[351950289,1738859442467,-989.31,0.00019178,2]
[351950291,1738859442477,-500.0,0.00019178,2]
[351950293,1738859442488,-500.0,0.00019178,2]
[351950296,1738859442499,-640.9,0.00019178,2]
[351950298,1738859442513,-500.0,0.00019178,2]
[351950300,1738859442523,-500.0,0.00019178,2]
[351950302,1738859442534,-500.0,0.00019178,2]
[351950304,1738859442544,-500.0,0.00019178,2]
[351950306,1738859442555,-1149.63,0.00019178,2]
[351950308,1738859442566,-500.0,0.00019178,2]
[351950310,1738859442578,-588.64,0.00019178,2]
[351950312,1738859442589,-500.0,0.00019178,2]
[351950314,1738859442601,-500.0,0.00019178,2]
[351950316,1738859442612,-500.0,0.00019178,2]
[351950318,1738859442622,-500.0,0.00019178,2]
[351950320,1738859442632,-443.13474416,0.00019178,2]
[351950322,1738859442642,-500.0,0.00019178,2]
[351950324,1738859442653,-500.0,0.00019178,2]
[351950326,1738859442664,-500.0,0.00019178,2]
[351950328,1738859442674,-500.0,0.00019178,2]
[351950330,1738859442683,-912.68,0.00019178,2]
[351950333,1738859442694,-500.0,0.00019178,2]
[351950335,1738859442706,-500.0,0.00019178,2]
[351950337,1738859442716,-500.0,0.00019178,2]
[351950339,1738859442726,-500.0,0.00019178,2]
[351950341,1738859442737,-500.0,0.00019178,2]
[351950343,1738859442747,-500.0,0.00019178,2]
[351950345,1738859442757,-500.0,0.00019178,2]
[351950347,1738859442768,-500.0,0.00019178,2]
[351950349,1738859442778,-500.0,0.00019178,2]
[351950351,1738859442788,-500.0,0.00019178,2]
[351950353,1738859442799,-500.0,0.00019178,2]
[351950355,1738859442810,-500.0,0.00019178,2]
[351950357,1738859442820,-500.0,0.00019178,2]
[351950359,1738859442831,-500.0,0.00019178,2]
[351950361,1738859442840,-501.04964395,0.00019178,2]
[351950363,1738859442851,-500.0,0.00019178,2]
[351950365,1738859442862,-1738.07,0.00019178,2]
[351950367,1738859442873,-716.89,0.00019178,2]
[351950369,1738859442883,-500.0,0.00019178,2]
[351950371,1738859442895,-500.0,0.00019178,2]
[351950373,1738859442905,-500.0,0.00019178,2]
[351950376,1738859442916,-500.0,0.00019178,2]
[351950378,1738859442926,-500.0,0.00019178,2]
[351950380,1738859442937,-500.0,0.00019178,2]
[351950382,1738859442947,-500.0,0.00019178,2]
[351950384,1738859442957,-593.9,0.00019178,2]
[351950387,1738859442967,-928.58,0.00019178,2]
[351950390,1738859442977,-536.69,0.00019178,2]
[351950392,1738859442988,-500.0,0.00019178,2]
[351950394,1738859442998,-500.0,0.00019178,2]
[351950397,1738859443008,-500.0,0.00019178,2]
[351950400,1738859443019,-253.40489674,0.00019178,2]
[351950403,1738859443029,-500.0,0.00019178,2]
[351950406,1738859443039,-500.0,0.00019178,2]
[351950409,1738859443050,-500.0,0.00019178,2]
[351950412,1738859443061,-500.0,0.00019178,2]
[351950415,1738859443073,-500.0,0.00019178,2]
[351950419,1738859443084,-500.62622198,0.00019178,2]
[351950423,1738859443094,-781.7,0.00019178,2]
[351950427,1738859443105,-500.0,0.00019178,2]
[351950431,1738859443115,-517.69,0.00019178,2]
[351950434,1738859443126,-500.0,0.00019178,2]
[351950437,1738859443136,-500.0,0.00019178,2]
[351950441,1738859443146,-872.94,0.00019178,2]
[351950445,1738859443156,-500.0,0.00019178,2]
[351950449,1738859443165,-500.0,0.00019178,2]
[351950452,1738859443175,-554.06848747,0.00019178,2]
[351950454,1738859443185,-500.0,0.00019178,2]
[351950456,1738859443195,-500.0,0.00019178,2]
[351950459,1738859443206,-1180.42,0.00019178,2]
[351950461,1738859443216,-500.0,0.00019178,2]
[351950463,1738859443227,-500.0,0.00019178,2]
[351950465,1738859443239,-1583.72,0.00019178,2]
[351950467,1738859443249,-500.0,0.00019178,2]
[351950469,1738859443259,-626.37,0.00019178,2]
[351950471,1738859443269,-500.0,0.00019178,2]
[351950473,1738859443279,-500.0,0.00019178,2]
[351950475,1738859443289,-500.0,0.00019178,2]
[351950477,1738859443298,-500.0,0.00019178,2]
[351950479,1738859443308,-1095.92,0.00019178,2]
[351950481,1738859443318,-500.0,0.00019178,2]
[351950483,1738859443330,-581.37191801,0.00019178,2]
[351950485,1738859443340,-500.0,0.00019178,2]
[351950487,1738859443349,-1245.43,0.00019178,2]
[351950489,1738859443360,-1731.07,0.00019178,2]
[351950491,1738859443370,-580.32462573,0.00019178,2]
[351950493,1738859443379,-500.0,0.00019178,2]
[351950495,1738859443389,-618.11,0.00019178,2]
[351950497,1738859443399,-501.13646855,0.00019178,2]
[351950499,1738859443411,-500.0,0.00019178,2]
[351950501,1738859443421,-500.0,0.00019178,2]
[351950503,1738859443432,-500.0,0.00019178,2]
[351950506,1738859443442,-500.0,0.00019178,2]
[351950508,1738859443452,-1071.66,0.00019178,2]
[351950510,1738859443462,-500.0,0.00019178,2]
[351950512,1738859443472,-500.0,0.00019178,2]
[351950514,1738859443482,-500.0,0.00019178,2]
[351950516,1738859443494,-500.0,0.00019178,2]
[351950518,1738859443504,-500.0,0.00019178,2]
[351950520,1738859443514,-500.0,0.00019178,2]
[351950522,1738859443525,-500.0,0.00019178,2]
[351950524,1738859443535,-500.0,0.00019178,2]
[351950526,1738859443545,-571.79,0.00019178,2]
[351950528,1738859443556,-501.4581613,0.00019178,2]
[351950560,1738859443776,-500.0,0.00019178,2]
[351950562,1738859443789,-500.0,0.00019178,2]
[351950564,1738859443798,-500.0,0.00019178,2]
[351950566,1738859443808,-500.0,0.00019178,2]
[351950568,1738859443818,-567.18,0.00019178,2]
[351950570,1738859443831,-500.0,0.00019178,2]
[351950572,1738859443841,-501.0,0.00019178,2]
[351950574,1738859443851,-1131.09,0.00019178,2]
[351950576,1738859443862,-1485.63,0.00019178,2]
[351950578,1738859443873,-500.0,0.00019178,2]
[351950580,1738859443883,-500.0,0.00019178,2]
[351950582,1738859443893,-500.0,0.00019178,2]
[351950584,1738859443903,-275.01384469,0.00019178,2]
[351950585,1738859443914,-820.08,0.00019178,2]
[351950586,1738859443924,-725.72,0.00019178,2]
[351950587,1738859443941,-500.57265941,0.00019178,2]
[351950588,1738859443951,-500.0,0.00019178,2]
[351950589,1738859443962,-500.0,0.00019178,2]
[351950590,1738859443973,-500.0,0.00019178,2]
[351950591,1738859443983,-744.33,0.00019178,2]
[351950592,1738859443994,-1200.0,0.00019178,5]
[351950593,1738859444004,-501.74765094,0.00019178,2]
[351950594,1738859444013,-1038.55,0.00019178,2]
[351950595,1738859444023,-997.71,0.00019178,2]
[351950596,1738859444033,-500.0,0.00019178,2]
[351950598,1738859444043,-500.0,0.00019178,2]
[351950600,1738859444053,-500.0,0.00019178,2]
[351950602,1738859444063,-500.0,0.00019178,2]
[351950604,1738859444075,-500.0,0.00019178,2]
[351950606,1738859444085,-500.0,0.00019178,2]
[351950608,1738859444095,-501.70901193,0.00019178,2]
[351950610,1738859444105,-500.0,0.00019178,2]
[351950612,1738859444114,-920.08,0.00019178,2]
[351950614,1738859444123,-500.0,0.00019178,2]
[351950616,1738859444132,-500.0,0.00019178,2]
[351950618,1738859444142,-310.82774413,0.00019178,2]
[351950620,1738859444152,-500.0,0.00019178,2]
[351950622,1738859444162,-546.8,0.00019178,2]
[351950624,1738859444172,-802.1,0.00019178,2]
[351950626,1738859444183,-500.0,0.00019178,2]
[351950627,1738859444192,-500.0,0.00019178,2]
[351950629,1738859444203,-500.0,0.00019178,2]
[351950632,1738859444213,-1062.66,0.00019178,2]
[351950634,1738859444223,-829.39,0.00019178,2]
[351950635,1738859444232,-500.0,0.00019178,2]
[351950638,1738859444242,-500.0,0.00019178,2]
[351950639,1738859444252,-500.0,0.00019178,2]
[351950642,1738859444262,-500.0,0.00019178,2]
[351950644,1738859444271,-616.96528684,0.00019178,2]
[351950646,1738859444280,-781.71,0.00019178,2]
[351950647,1738859444290,-733.94,0.00019178,2]
[351950650,1738859444300,-500.0,0.00019178,2]
[351950652,1738859444310,-500.0,0.00019178,2]
[351950654,1738859444320,-977.61,0.00019178,2]
[351950656,1738859444332,-921.15,0.00019178,2]
[351950658,1738859444342,-1215.45,0.00019178,2]
[351950660,1738859444352,-241.56930154,0.00019178,2]
[351950662,1738859444362,-694.69,0.00019178,2]
[351950664,1738859444371,-500.0,0.00019178,2]
[351950666,1738859444381,-500.0,0.00019178,2]
[351950667,1738859444390,-500.0,0.00019178,2]
[351950669,1738859444399,-500.0,0.00019178,2]
[351950671,1738859444409,-914.14,0.00019178,2]
[351950673,1738859444418,-500.0,0.00019178,2]
[351950675,1738859444428,-500.0,0.00019178,2]
[351950677,1738859444438,-500.0,0.00019178,2]
[351950679,1738859444448,-861.82,0.00019178,2]
[351950681,1738859444459,-500.0,0.00019178,2]
[351950683,1738859444468,-500.0,0.00019178,2]
[351950685,1738859444478,-500.0,0.00019178,2]
[351950687,1738859444489,-500.0,0.00019178,2]
[351950689,1738859444499,-835.12,0.00019178,2]
[351950691,1738859444512,-500.0,0.00019178,2]
[351950693,1738859444521,-500.0,0.00019178,2]
[351950695,1738859444531,-553.19108828,0.00019178,2]
[351950697,1738859444540,-664.56,0.00019178,2]
[351950699,1738859444550,-502.98777218,0.00019178,2]
[351950701,1738859444559,-500.0,0.00019178,2]
[351950703,1738859444569,-500.0,0.00019178,2]
[351950705,1738859444583,-627.63,0.00019178,2]
[351950707,1738859444592,-500.0,0.00019178,2]
[351950709,1738859444602,-500.0,0.00019178,2]
[351950711,1738859444612,-500.0,0.00019178,2]
[351950713,1738859444622,-636.89,0.00019178,2]
[351950715,1738859444631,-500.0,0.00019178,2]
[351950717,1738859444641,-500.0,0.00019178,2]
[351950719,1738859444650,-746.71,0.00019178,2]